[Event "GER-ch Youth U16w 2019"]
[Site "Willingen"]
[Date "2019.06.09"]
[Round "2.6"]
[White "Sokolowski, Judith"]
[Black "Fock, Amina"]
[Result "0-1"]
[ECO "B22"]
[WhiteElo "1749"]
[BlackElo "1723"]
[Annotator "NA"]
[PlyCount "62"]
[EventDate "2019.06.07"]
[EventType "swiss"]
[EventRounds "9"]
[EventCountry "GER"]
[SourceTitle "playchess.com"]
[Source "ChessBase"]
[SourceQuality "1"]
[TimeControl "40/5400+30:1800+30"]

1. e4 {[%emt 0:00:00]} c5 {[%emt 0:00:00]} 2. c3 {[%emt 0:00:00]} d5 {[%emt 0:00:00]} 3. exd5 {[%emt 0:00:00]} Qxd5 {[%emt 0:00:00]} 4. d4 {[%emt 0:00:00]} cxd4 {[%emt 0:00:03]} 5. cxd4 {[%emt 0:00:46]} Nc6 {[%emt 0:00:12]} 6. Be3 {[%emt 0:04:47]} e6 {[%emt 0:00:53]} 7. Nf3 {[%emt 0:01:03]} Nf6 {[%emt 0:00:29]} 8. Nc3 {[%emt 0:01:38]} Qd8 {[%emt 0:00:30]} 9. a3 {[%emt 0:02:51]} Be7 {[%emt 0:02:10]} 10. Bd3 {[%emt 0:00:49]} O-O {[%emt 0:01:50]} 11. O-O {[%emt 0:00:49]} b6 {[%emt 0:00:50]} 12. Qe2 {[%emt 0:12:01]} a6 {[%emt 0:06:03]} 13. Rfd1 {[%emt 0:03:13]} Bb7 {[%emt 0:02:22]} 14. Rac1 {[%emt 0:03:39]} Nd5 {[%emt 0:08:27]} 15. Qc2 {[%emt 0:06:05]} Nxe3 {[%emt 0:02:59]} 16. fxe3 {[%emt 0:05:16]} g6 {[%emt 0:01:18]} 17. Qf2 {[%emt 0:08:12]} Bf6 {[%emt 0:06:42]} 18. Ne4 {[%emt 0:03:26]} Bg7 {[%emt 0:01:38]} 19. Qg3 {[%emt 0:06:40]} Ne7 {[%emt 0:09:18]} 20. Qc7 {[%emt 0:06:56]} Bxe4 {[%emt 0:07:15]} 21. Bxe4 {[%emt 0:05:26]} Nd5 {[%emt 0:00:52]} 22. Qxd8 {[%emt 0:01:30]} Raxd8 {[%emt 0:00:19]} 23. Rc6 {[%emt 0:05:19]} Nxe3 {[%emt 0:08:02]} 24. Rd3 {[%emt 0:03:57]} Nd5 {[%emt 0:02:17]} 25. Bxd5 {[%emt 0:02:09]} Rxd5 {[%emt 0:00:15]} 26. Rb3 {[%emt 0:06:33]} a5 {[%emt 0:04:38]} 27. Rbxb6 {[%emt 0:02:43]} Bxd4+ {[%emt 0:01:28]} 28. Nxd4 {[%emt 0:00:04]} Rxd4 {[%emt 0:00:11]} 29. Rc2 {[%emt 0:04:11]} a4 {[%emt 0:02:27]} 30. b3 {[%emt 0:01:43]} axb3 {[%emt 0:00:37]} 31. Rxb3 {[%emt 0:00:09]} Ra8 {[%emt 0:00:45] normal} 0-1

[Event "GER-ch Youth U16w 2019"]
[Site "Willingen"]
[Date "2019.06.09"]
[Round "2.7"]
[White "Ziegenfuss, Larissa"]
[Black "Wucherer, Sophie"]
[Result "1-0"]
[ECO "B42"]
[WhiteElo "1771"]
[BlackElo "1496"]
[Annotator "NA"]
[PlyCount "42"]
[EventDate "2019.06.07"]
[EventType "swiss"]
[EventRounds "9"]
[EventCountry "GER"]
[SourceTitle "playchess.com"]
[Source "ChessBase"]
[SourceQuality "1"]
[TimeControl "40/5400+30:1800+30"]

1. e4 {[%emt 0:00:00]} c5 {[%emt 0:00:00]} 2. Nf3 {[%emt 0:00:00]} e6 {[%emt 0:00:07]} 3. d4 {[%emt 0:00:00]} cxd4 {[%emt 0:00:10]} 4. Nxd4 {[%emt 0:00:02]} a6 {[%emt 0:00:09]} 5. Bd3 {[%emt 0:01:21]} Nf6 {[%emt 0:02:06]} 6. O-O {[%emt 0:01:49]} Qc7 {[%emt 0:00:06]} 7. Qe2 {[%emt 0:05:04]} d6 {[%emt 0:00:33]} 8. c4 {[%emt 0:02:51]} b6 {[%emt 0:05:39]} 9. Nd2 {[%emt 0:03:52]} Nbd7 {[%emt 0:05:36]} 10. b3 {[%emt 0:04:17]} Be7 {[%emt 0:01:12]} 11. Bb2 {[%emt 0:02:21]} O-O {[%emt 0:07:15]} 12. f4 {[%emt 0:05:12]} Bb7 {[%emt 0:03:29]} 13. f5 {[%emt 0:05:31]} exf5 {[%emt 0:17:57]} 14. Nxf5 {[%emt 0:05:27]} Bd8 {[%emt 0:07:16]} 15. Rae1 {[%emt 0:16:11]} Re8 {[%emt 0:01:27]} 16. Qf3 {[%emt 0:05:56]} Ne5 {[%emt 0:30:10]} 17. Qe2 {[%emt 0:11:43]} Rc8 {[%emt 0:02:25]} 18. Bb1 {[%emt 0:02:43]} Qb8 {[%emt 0:00:28]} 19. Ba3 {[%emt 0:02:30]} Bc7 {[%emt 0:01:01]} 20. Qf2 {[%emt 0:03:59]} Re6 {[%emt 0:03:43]} 21. Qg3 {[%emt 0:02:54]} Ng6 {[%emt 0:00:38] normal} 1-0

[Event "GER-ch Youth U16w 2019"]
[Site "Willingen"]
[Date "2019.06.09"]
[Round "2.8"]
[White "Glinzner, Alva"]
[Black "Zell, Hannah"]
[Result "1-0"]
[ECO "B01"]
[WhiteElo "1833"]
[BlackElo "1473"]
[Annotator "NA"]
[PlyCount "73"]
[EventDate "2019.06.07"]
[EventType "swiss"]
[EventRounds "9"]
[EventCountry "GER"]
[SourceTitle "playchess.com"]
[Source "ChessBase"]
[SourceQuality "1"]
[TimeControl "40/5400+30:1800+30"]

1. e4 {[%emt 0:00:00]} d5 {[%emt 0:00:00]} 2. exd5 {[%emt 0:00:00]} Nf6 {[%emt 0:00:00]} 3. d4 {[%emt 0:00:00]} Nxd5 {[%emt 0:00:52]} 4. Nf3 {[%emt 0:00:17]} Bf5 {[%emt 0:04:14]} 5. c3 {[%emt 0:01:58]} c6 {[%emt 0:04:01]} 6. Be2 {[%emt 0:05:14]} g6 {[%emt 0:02:52]} 7. O-O {[%emt 0:01:08]} Bg7 {[%emt 0:01:16]} 8. Na3 {[%emt 0:00:57]} O-O {[%emt 0:03:04]} 9. Nc4 {[%emt 0:00:43]} Nd7 {[%emt 0:02:20]} 10. Ne3 {[%emt 0:04:11]} Be4 {[%emt 0:09:46]} 11. Ng5 {[%emt 0:03:23]} N7f6 {[%emt 0:02:34]} 12. Nxe4 {[%emt 0:01:22]} Nxe4 {[%emt 0:00:22]} 13. Bc4 {[%emt 0:01:14]} e6 {[%emt 0:02:20]} 14. Ng4 {[%emt 0:04:54]} h5 {[%emt 0:04:59]} 15. Ne5 {[%emt 0:03:26]} Nd6 {[%emt 0:04:28]} 16. Bd3 {[%emt 0:02:46]} Rc8 {[%emt 0:04:53]} 17. Qe2 {[%emt 0:02:24]} b6 {[%emt 0:08:45]} 18. Nxg6 {[%emt 0:13:51]} fxg6 {[%emt 0:08:06]} 19. Qxe6+ {[%emt 0:00:12]} Kh8 {[%emt 0:05:08]} 20. Qxg6 {[%emt 0:00:37]} Nf6 {[%emt 0:00:56]} 21. Bg5 {[%emt 0:01:35]} Qe8 {[%emt 0:01:49]} 22. Bxf6 {[%emt 0:01:41]} Qxg6 {[%emt 0:00:16]} 23. Bxg6 {[%emt 0:00:02]} Rxf6 {[%emt 0:00:41]} 24. Bxh5 {[%emt 0:00:06]} Kh7 {[%emt 0:01:31]} 25. Rae1 {[%emt 0:01:05]} Rc7 {[%emt 0:02:10]} 26. f4 {[%emt 0:01:12]} Bf8 {[%emt 0:01:16]} 27. Bf3 {[%emt 0:03:33]} Rxf4 {[%emt 0:04:37]} 28. Bxc6 {[%emt 0:01:06]} Bh6 {[%emt 0:02:20]} 29. Bf3 {[%emt 0:00:52]} Nc4 {[%emt 0:00:47]} 30. Re2 {[%emt 0:05:59]} Rff7 {[%emt 0:01:26]} 31. Rfe1 {[%emt 0:05:11]} Nd6 {[%emt 0:05:16]} 32. Re6 {[%emt 0:01:05]} Nc8 {[%emt 0:01:49]} 33. Be4+ {[%emt 0:00:12]} Kg7 {[%emt 0:01:01]} 34. Rg6+ {[%emt 0:00:18]} Kh7 {[%emt 0:01:18]} 35. Rxb6+ {[%emt 0:00:35]} Kg7 {[%emt 0:00:15]} 36. Rg6+ {[%emt 0:00:21]} Kh7 {[%emt 0:00:12]} 37. g3 {[%emt 0:05:31] normal} 1-0

[Event "GER-ch Youth U16w 2019"]
[Site "Willingen"]
[Date "2019.06.09"]
[Round "2.9"]
[White "Jacoby, Angelina"]
[Black "Meijerink, Inken"]
[Result "0-1"]
[ECO "D02"]
[WhiteElo "1412"]
[BlackElo "1681"]
[Annotator "NA"]
[PlyCount "92"]
[EventDate "2019.06.07"]
[EventType "swiss"]
[EventRounds "9"]
[EventCountry "GER"]
[SourceTitle "playchess.com"]
[Source "ChessBase"]
[SourceQuality "1"]
[TimeControl "40/5400+30:1800+30"]

1. d4 {[%emt 0:00:00]} Nf6 {[%emt 0:00:00]} 2. Nf3 {[%emt 0:00:00]} d5 {[%emt 0:00:00]} 3. Bf4 {[%emt 0:00:00]} c5 {[%emt 0:00:32]} 4. e3 {[%emt 0:00:08]} Nc6 {[%emt 0:00:23]} 5. Nbd2 {[%emt 0:01:48]} e6 {[%emt 0:01:34]} 6. c3 {[%emt 0:01:02]} Bd6 {[%emt 0:01:27]} 7. Bg3 {[%emt 0:00:21]} O-O {[%emt 0:03:58]} 8. Bd3 {[%emt 0:02:23]} Re8 {[%emt 0:02:11]} 9. Ne5 {[%emt 0:00:16]} Qc7 {[%emt 0:04:51]} 10. f4 {[%emt 0:01:51]} c4 {[%emt 0:05:44]} 11. Bc2 {[%emt 0:00:43]} b5 {[%emt 0:00:25]} 12. O-O {[%emt 0:06:23]} a5 {[%emt 0:02:03]} 13. Bh4 {[%emt 0:02:51]} h6 {[%emt 0:25:24]} 14. Bxf6 {[%emt 0:05:29]} gxf6 {[%emt 0:00:23]} 15. Nxc6 {[%emt 0:00:48]} Qxc6 {[%emt 0:01:00]} 16. Qh5 {[%emt 0:00:18]} Kf8 {[%emt 0:03:49]} 17. Qxh6+ {[%emt 0:03:42]} Ke7 {[%emt 0:00:07]} 18. Rf3 {[%emt 0:00:36]} f5 {[%emt 0:01:41]} 19. Rg3 {[%emt 0:00:50]} Bb7 {[%emt 0:03:04]} 20. Rg7 {[%emt 0:00:46]} Rf8 {[%emt 0:01:55]} 21. Qg5+ {[%emt 0:02:47]} Kd7 {[%emt 0:02:56]} 22. Nf3 {[%emt 0:01:23]} Kc7 {[%emt 0:00:27]} 23. h4 {[%emt 0:00:31]} Rae8 {[%emt 0:01:15]} 24. Ne5 {[%emt 0:02:42]} Bxe5 {[%emt 0:00:26]} 25. fxe5 {[%emt 0:00:11]} Qd7 {[%emt 0:00:39]} 26. Rf1 {[%emt 0:01:06]} Qd8 {[%emt 0:02:13]} 27. Qxd8+ {[%emt 0:00:48]} Kxd8 {[%emt 0:00:36]} 28. Rf3 {[%emt 0:00:10]} Ke7 {[%emt 0:00:33]} 29. h5 {[%emt 0:00:18]} Rh8 {[%emt 0:01:07]} 30. Rh3 {[%emt 0:00:35]} Reg8 {[%emt 0:00:50]} 31. h6 {[%emt 0:01:21]} Rxg7 {[%emt 0:00:22]} 32. hxg7 {[%emt 0:00:13]} Rg8 {[%emt 0:00:08]} 33. Rg3 {[%emt 0:00:46]} f6 {[%emt 0:00:24]} 34. Bd1 {[%emt 0:03:25]} Bc6 {[%emt 0:00:51]} 35. Bh5 {[%emt 0:01:12]} fxe5 {[%emt 0:00:15]} 36. dxe5 {[%emt 0:03:34]} Be8 {[%emt 0:00:28]} 37. Bxe8 {[%emt 0:02:33]} Kxe8 {[%emt 0:00:07]} 38. Kf2 {[%emt 0:00:27]} Kf7 {[%emt 0:00:14]} 39. Kf3 {[%emt 0:01:33]} Rxg7 {[%emt 0:00:57]} 40. Rxg7+ {[%emt 0:00:10]} Kxg7 {[%emt 0:00:06]} 41. Kf4 {[%emt 0:30:10]} a4 {[%emt 0:30:51]} 42. Kg5 {[%emt 0:01:03]} b4 {[%emt 0:00:47]} 43. Kf4 {[%emt 0:02:06]} a3 {[%emt 0:00:15]} 44. bxa3 {[%emt 0:01:34]} bxc3 {[%emt 0:00:12]} 45. e4 {[%emt 0:00:15]} c2 {[%emt 0:00:07]} 46. exf5 {[%emt 0:00:13]} c1=Q+ {[%emt 0:00:13] normal} 0-1

[Event "GER-ch Youth U16w 2019"]
[Site "Willingen"]
[Date "2019.06.09"]
[Round "2.10"]
[White "Schneider, Katharina"]
[Black "Dietz, Helena"]
[Result "1-0"]
[ECO "B00"]
[WhiteElo "1784"]
[BlackElo "1534"]
[Annotator "NA"]
[PlyCount "43"]
[EventDate "2019.06.07"]
[EventType "swiss"]
[EventRounds "9"]
[EventCountry "GER"]
[SourceTitle "playchess.com"]
[Source "ChessBase"]
[SourceQuality "1"]
[TimeControl "40/5400+30:1800+30"]

1. e4 {[%emt 0:00:00]} d6 {[%emt 0:00:00]} 2. Bc4 {[%emt 0:00:00]} Nf6 {[%emt 0:00:11]} 3. d3 {[%emt 0:00:00]} g6 {[%emt 0:00:41]} 4. Nc3 {[%emt 0:00:09]} Bg7 {[%emt 0:01:35]} 5. f4 {[%emt 0:00:40]} O-O {[%emt 0:01:22]} 6. Nf3 {[%emt 0:00:42]} c5 {[%emt 0:07:16]} 7. O-O {[%emt 0:05:36]} Na6 {[%emt 0:17:38]} 8. Qe1 {[%emt 0:09:04]} Nc7 {[%emt 0:07:11]} 9. Qh4 {[%emt 0:12:32]} e6 {[%emt 0:11:32]} 10. Bb3 {[%emt 0:11:20]} Rb8 {[%emt 0:02:46]} 11. Ng5 {[%emt 0:07:17]} h6 {[%emt 0:03:25]} 12. Nh3 {[%emt 0:02:18]} Nh5 {[%emt 0:08:21]} 13. Qg4 {[%emt 0:05:40]} Nf6 {[%emt 0:01:16]} 14. Qf3 {[%emt 0:04:09]} b5 {[%emt 0:02:16]} 15. g4 {[%emt 0:08:33]} Nh7 {[%emt 0:09:11]} 16. Qg3 {[%emt 0:07:00]} Bd4+ {[%emt 0:08:32]} 17. Kh1 {[%emt 0:01:35]} Qf6 {[%emt 0:02:23]} 18. Bd2 {[%emt 0:02:14]} b4 {[%emt 0:01:07]} 19. Na4 {[%emt 0:00:15]} Bxb2 {[%emt 0:00:40]} 20. Nxb2 {[%emt 0:00:04]} Qxb2 {[%emt 0:00:09]} 21. f5 {[%emt 0:00:30]} g5 {[%emt 0:05:44]} 22. Qxd6 {[%emt 0:01:31] normal} 1-0

[Event "GER-ch Youth U16w 2019"]
[Site "Willingen"]
[Date "2019.06.09"]
[Round "2.11"]
[White "Stowicek, Yara Mathilda"]
[Black "Huppert, Anna"]
[Result "1/2-1/2"]
[ECO "C06"]
[WhiteElo "1692"]
[BlackElo "1515"]
[Annotator "NA"]
[PlyCount "62"]
[EventDate "2019.06.07"]
[EventType "swiss"]
[EventRounds "9"]
[EventCountry "GER"]
[SourceTitle "playchess.com"]
[Source "ChessBase"]
[SourceQuality "1"]
[TimeControl "40/5400+30:1800+30"]

1. e4 {[%emt 0:00:00]} e6 {[%emt 0:00:00]} 2. d4 {[%emt 0:00:00]} d5 {[%emt 0:00:00]} 3. Nd2 {[%emt 0:00:00]} Nf6 {[%emt 0:00:00]} 4. e5 {[%emt 0:00:03]} Nfd7 {[%emt 0:00:00]} 5. Bd3 {[%emt 0:00:21]} c5 {[%emt 0:00:00]} 6. c3 {[%emt 0:00:19]} Nc6 {[%emt 0:00:08]} 7. Ne2 {[%emt 0:00:22]} cxd4 {[%emt 0:00:07]} 8. cxd4 {[%emt 0:00:20]} f6 {[%emt 0:00:07]} 9. exf6 {[%emt 0:00:25]} Nxf6 {[%emt 0:00:11]} 10. Nf3 {[%emt 0:00:42]} Bd6 {[%emt 0:00:23]} 11. O-O {[%emt 0:00:34]} Qc7 {[%emt 0:01:19]} 12. Nc3 {[%emt 0:01:48]} a6 {[%emt 0:00:22]} 13. Bg5 {[%emt 0:01:11]} O-O {[%emt 0:00:16]} 14. Re1 {[%emt 0:02:13]} Bd7 {[%emt 0:04:44]} 15. Rc1 {[%emt 0:02:53]} Rae8 {[%emt 0:10:35]} 16. Bb1 {[%emt 0:04:44]} Re7 {[%emt 0:14:55]} 17. Bh4 {[%emt 0:04:13]} Be8 {[%emt 0:05:10]} 18. Bg3 {[%emt 0:04:30]} Bxg3 {[%emt 0:05:08]} 19. hxg3 {[%emt 0:00:19]} Bh5 {[%emt 0:02:15]} 20. Na4 {[%emt 0:04:48]} Qd6 {[%emt 0:02:17]} 21. Qd2 {[%emt 0:11:30]} e5 {[%emt 0:06:34]} 22. dxe5 {[%emt 0:06:06]} Nxe5 {[%emt 0:00:56]} 23. Nxe5 {[%emt 0:02:01]} Rxe5 {[%emt 0:00:59]} 24. Rxe5 {[%emt 0:02:26]} Qxe5 {[%emt 0:00:15]} 25. Nc5 {[%emt 0:01:19]} Qe7 {[%emt 0:02:20]} 26. Bf5 {[%emt 0:05:03]} Bf7 {[%emt 0:01:56]} 27. Qb4 {[%emt 0:03:56]} Qe5 {[%emt 0:08:45]} 28. Bd3 {[%emt 0:03:16]} Rb8 {[%emt 0:05:17]} 29. Re1 {[%emt 0:10:52]} Qc7 {[%emt 0:04:34]} 30. Bf5 {[%emt 0:04:14]} a5 {[%emt 0:06:56]} 31. Qd4 {[%emt 0:04:05]} Kf8 {[%emt 0:04:52] normal} 1/2-1/2

[Event "GER-ch Youth U16w 2019"]
[Site "Willingen"]
[Date "2019.06.09"]
[Round "2.13"]
[White "Peschel, Julia"]
[Black "Sinnhoefer, Lilian"]
[Result "0-1"]
[ECO "C54"]
[WhiteElo "1275"]
[BlackElo "1396"]
[Annotator "NA"]
[PlyCount "54"]
[EventDate "2019.06.07"]
[EventType "swiss"]
[EventRounds "9"]
[EventCountry "GER"]
[SourceTitle "playchess.com"]
[Source "ChessBase"]
[SourceQuality "1"]
[TimeControl "40/5400+30:1800+30"]

1. e4 {[%emt 0:00:00]} e5 {[%emt 0:00:00]} 2. Nf3 {[%emt 0:00:00]} Nc6 {[%emt 0:00:00]} 3. Bc4 {[%emt 0:00:00]} Bc5 {[%emt 0:00:00]} 4. c3 {[%emt 0:00:04]} Nf6 {[%emt 0:02:09]} 5. d3 {[%emt 0:00:30]} h6 {[%emt 0:04:08]} 6. Bb3 {[%emt 0:01:10]} d6 {[%emt 0:01:19]} 7. Nbd2 {[%emt 0:01:00]} Bg4 {[%emt 0:03:43]} 8. h3 {[%emt 0:02:22]} Bh5 {[%emt 0:00:46]} 9. Nf1 {[%emt 0:03:20]} d5 {[%emt 0:10:58]} 10. exd5 {[%emt 0:03:26]} Nxd5 {[%emt 0:02:01]} 11. Ng3 {[%emt 0:01:31]} Bg6 {[%emt 0:04:52]} 12. O-O {[%emt 0:03:51]} Nde7 {[%emt 0:19:07]} 13. Bc2 {[%emt 0:09:02]} Qd6 {[%emt 0:09:15]} 14. Re1 {[%emt 0:02:49]} O-O {[%emt 0:04:41]} 15. Be3 {[%emt 0:02:34]} Bxe3 {[%emt 0:03:26]} 16. Rxe3 {[%emt 0:00:12]} Nd5 {[%emt 0:04:22]} 17. Re1 {[%emt 0:03:11]} Nf4 {[%emt 0:03:04]} 18. Ne4 {[%emt 0:02:10]} Bxe4 {[%emt 0:01:34]} 19. Rxe4 {[%emt 0:04:09]} f5 {[%emt 0:01:14]} 20. Re1 {[%emt 0:02:05]} Qg6 {[%emt 0:02:16]} 21. g3 {[%emt 0:15:42]} Nxh3+ {[%emt 0:01:41]} 22. Kf1 {[%emt 0:02:45]} f4 {[%emt 0:05:31]} 23. d4 {[%emt 0:02:48]} Qg4 {[%emt 0:01:56]} 24. Nh4 {[%emt 0:02:25]} fxg3 {[%emt 0:02:00]} 25. Re4 {[%emt 0:06:05]} Qxd1+ {[%emt 0:03:14]} 26. Bxd1 {[%emt 0:01:16]} Rxf2+ {[%emt 0:01:19]} 27. Ke1 {[%emt 0:00:10]} g2 {[%emt 0:01:04] normal} 0-1

[Event "GER-ch Youth U16w 2019"]
[Site "Willingen"]
[Date "2019.06.10"]
[Round "3.1"]
[White "Muedder, Melanie"]
[Black "Wagner, Victoria"]
[Result "1-0"]
[ECO "B90"]
[WhiteElo "1912"]
[BlackElo "1808"]
[Annotator "NA"]
[PlyCount "35"]
[EventDate "2019.06.07"]
[EventType "swiss"]
[EventRounds "9"]
[EventCountry "GER"]
[SourceTitle "playchess.com"]
[Source "ChessBase"]
[SourceQuality "1"]
[TimeControl "40/5400+30:1800+30"]

1. e4 {[%emt 0:00:00]} c5 {[%emt 0:00:00]} 2. Nf3 {[%emt 0:00:00]} d6 {[%emt 0:00:00]} 3. d4 {[%emt 0:00:00]} cxd4 {[%emt 0:00:00]} 4. Nxd4 {[%emt 0:00:00]} Nf6 {[%emt 0:00:00]} 5. Nc3 {[%emt 0:00:05]} a6 {[%emt 0:00:08]} 6. h3 {[%emt 0:00:29]} e5 {[%emt 0:02:17]} 7. Nb3 {[%emt 0:00:11]} h5 {[%emt 0:02:48]} 8. Bg5 {[%emt 0:00:13]} Be7 {[%emt 0:00:22]} 9. Be2 {[%emt 0:03:25]} g6 {[%emt 0:05:23]} 10. Qd2 {[%emt 0:05:49]} Nbd7 {[%emt 0:09:34]} 11. Be3 {[%emt 0:22:49]} b5 {[%emt 0:07:05]} 12. a4 {[%emt 0:09:05]} b4 {[%emt 0:28:23]} 13. Nd5 {[%emt 0:06:10]} a5 {[%emt 0:02:23]} 14. Bb5 {[%emt 0:18:52]} Nxd5 {[%emt 0:04:41]} 15. Qxd5 {[%emt 0:01:03]} Rb8 {[%emt 0:09:27]} 16. Nxa5 {[%emt 0:03:50]} O-O {[%emt 0:04:11]} 17. Nc6 {[%emt 0:03:35]} Bb7 {[%emt 0:03:24]} 18. Bh6 {[%emt 0:05:44] normal} 1-0

[Event "GER-ch Youth U16w 2019"]
[Site "Willingen"]
[Date "2019.06.10"]
[Round "3.2"]
[White "Fock, Amina"]
[Black "Bardorz, Jana"]
[Result "0-1"]
[ECO "C77"]
[WhiteElo "1723"]
[BlackElo "1769"]
[Annotator "NA"]
[PlyCount "42"]
[EventDate "2019.06.07"]
[EventType "swiss"]
[EventRounds "9"]
[EventCountry "GER"]
[SourceTitle "playchess.com"]
[Source "ChessBase"]
[SourceQuality "1"]
[TimeControl "40/5400+30:1800+30"]

1. e4 {[%emt 0:00:00]} e5 {[%emt 0:00:00]} 2. Nf3 {[%emt 0:00:00]} Nc6 {[%emt 0:00:00]} 3. Bb5 {[%emt 0:00:00]} a6 {[%emt 0:00:00]} 4. Ba4 {[%emt 0:00:00]} Nf6 {[%emt 0:00:00]} 5. d3 {[%emt 0:00:00]} b5 {[%emt 0:00:23]} 6. Bb3 {[%emt 0:00:04]} Be7 {[%emt 0:01:05]} 7. c3 {[%emt 0:00:11]} d6 {[%emt 0:00:45]} 8. O-O {[%emt 0:00:50]} O-O {[%emt 0:01:16]} 9. h3 {[%emt 0:00:22]} Na5 {[%emt 0:01:08]} 10. Bc2 {[%emt 0:00:11]} c5 {[%emt 0:01:20]} 11. Nbd2 {[%emt 0:00:22]} Be6 {[%emt 0:05:03]} 12. Re1 {[%emt 0:01:40]} Qc7 {[%emt 0:03:12]} 13. Nf1 {[%emt 0:03:49]} Nc6 {[%emt 0:03:00]} 14. Ng3 {[%emt 0:09:41]} h6 {[%emt 0:12:25]} 15. Nh2 {[%emt 0:09:46]} d5 {[%emt 0:05:04]} 16. Qf3 {[%emt 0:07:36]} c4 {[%emt 0:09:10]} 17. dxc4 {[%emt 0:06:14]} bxc4 {[%emt 0:02:33]} 18. exd5 {[%emt 0:00:45]} Bxd5 {[%emt 0:01:24]} 19. Ne4 {[%emt 0:02:48]} Ne8 {[%emt 0:12:09]} 20. Qg3 {[%emt 0:05:35]} f5 {[%emt 0:03:01]} 21. Nd2 {[%emt 0:01:42]} Bd6 {[%emt 0:03:47] normal} 0-1

[Event "GER-ch Youth U16w 2019"]
[Site "Willingen"]
[Date "2019.06.10"]
[Round "3.3"]
[White "Bui, Ngoc Han Julia"]
[Black "Rothenberg, Nina"]
[Result "0-1"]
[ECO "C11"]
[WhiteElo "1973"]
[BlackElo "1653"]
[Annotator "NA"]
[PlyCount "57"]
[EventDate "2019.06.07"]
[EventType "swiss"]
[EventRounds "9"]
[EventCountry "GER"]
[SourceTitle "playchess.com"]
[Source "ChessBase"]
[SourceQuality "1"]
[TimeControl "40/5400+30:1800+30"]

1. e4 {[%emt 0:00:00]} e6 {[%emt 0:00:00]} 2. d4 {[%emt 0:00:00]} d5 {[%emt 0:00:00]} 3. Nc3 {[%emt 0:00:00]} Nf6 {[%emt 0:00:00]} 4. e5 Nfd7 5. f4 {[%emt 0:00:02]} c5 {[%emt 0:00:00]} 6. Nf3 {[%emt 0:00:10]} Nc6 {[%emt 0:00:00]} 7. Be3 {[%emt 0:00:26]} Be7 {[%emt 0:00:00]} 8. Qd2 {[%emt 0:00:12]} O-O {[%emt 0:00:07]} 9. dxc5 {[%emt 0:00:55]} Qa5 {[%emt 0:00:31]} 10. O-O-O {[%emt 0:03:16]} b6 {[%emt 0:00:42]} 11. Bb5 {[%emt 0:10:51]} Nb4 {[%emt 0:05:30]} 12. Kb1 {[%emt 0:06:28]} Nxa2 {[%emt 0:07:48]} 13. Nxd5 {[%emt 0:00:59]} exd5 {[%emt 0:00:30]} 14. Qxa5 {[%emt 0:00:54]} bxa5 {[%emt 0:04:30]} 15. Kxa2 {[%emt 0:09:22]} Bxc5 {[%emt 0:04:48]} 16. Rhe1 {[%emt 0:00:06]} Bxe3 {[%emt 0:02:28]} 17. Rxe3 {[%emt 0:05:22]} Nb6 {[%emt 0:05:06]} 18. b3 {[%emt 0:06:01]} Bf5 {[%emt 0:10:02]} 19. Bd3 {[%emt 0:03:21]} Bg4 20. h3 d4 {[%emt 0:08:00]} 21. Ree1 {[%emt 0:04:58]} Bxf3 {[%emt 0:01:50]} 22. gxf3 {[%emt 0:00:05]} Nd5 {[%emt 0:01:15]} 23. Be4 {[%emt 0:04:22]} Nc3+ {[%emt 0:03:26]} 24. Ka1 {[%emt 0:00:07]} Nxd1 {[%emt 0:11:55]} 25. Bxa8 {[%emt 0:00:06]} Ne3 {[%emt 0:04:50]} 26. Be4 {[%emt 0:00:37]} Rd8 {[%emt 0:04:37]} 27. Re2 {[%emt 0:02:52]} g6 {[%emt 0:04:38]} 28. Rd2 {[%emt 0:08:43]} Nf1 {[%emt 0:05:19]} 29. Rd3 {[%emt 0:02:14] normal} 0-1

[Event "GER-ch Youth U16w 2019"]
[Site "Willingen"]
[Date "2019.06.10"]
[Round "3.4"]
[White "Ziegenfuss, Larissa"]
[Black "Brunner, Sophia"]
[Result "0-1"]
[ECO "C06"]
[WhiteElo "1771"]
[BlackElo "1839"]
[Annotator "NA"]
[PlyCount "38"]
[EventDate "2019.06.07"]
[EventType "swiss"]
[EventRounds "9"]
[EventCountry "GER"]
[SourceTitle "playchess.com"]
[Source "ChessBase"]
[SourceQuality "1"]
[TimeControl "40/5400+30:1800+30"]

1. e4 {[%emt 0:00:00]} e6 {[%emt 0:00:00]} 2. d4 {[%emt 0:00:00]} d5 {[%emt 0:00:00]} 3. Nd2 {[%emt 0:00:00]} Nf6 {[%emt 0:00:00]} 4. e5 {[%emt 0:00:00]} Nfd7 {[%emt 0:00:17]} 5. Bd3 {[%emt 0:00:17]} c5 {[%emt 0:00:50]} 6. c3 {[%emt 0:00:05]} Nc6 {[%emt 0:00:15]} 7. Ne2 {[%emt 0:00:50]} cxd4 {[%emt 0:02:24]} 8. cxd4 {[%emt 0:00:18]} f6 {[%emt 0:00:10]} 9. Nf4 {[%emt 0:09:11]} Nxd4 {[%emt 0:05:59]} 10. Qh5+ {[%emt 0:01:36]} Ke7 {[%emt 0:02:48]} 11. Ng6+ {[%emt 0:10:04]} hxg6 {[%emt 0:00:09]} 12. exf6+ {[%emt 0:03:45]} Nxf6 {[%emt 0:04:31]} 13. Qxh8 {[%emt 0:01:31]} Kf7 {[%emt 0:02:50]} 14. Qh4 {[%emt 0:05:57]} e5 {[%emt 0:04:40]} 15. O-O {[%emt 0:11:54]} Bd6 {[%emt 0:16:29]} 16. Nb3 {[%emt 0:08:52]} Nf5 {[%emt 0:10:21]} 17. Bxf5 {[%emt 0:03:07]} Bxf5 {[%emt 0:00:07]} 18. Bg5 {[%emt 0:11:26]} Qh8 {[%emt 0:15:54]} 19. Qa4 {[%emt 0:10:58]} Ne4 {[%emt 0:16:05] normal} 0-1